bitfinex/quotes_ETHUSD_20251126
["timestamp","ask_amount","ask_price","bid_price","bid_amount"]
[1764191042515,1e-08,3026.3,3026.2,5.64395354]
[1764191043393,1e-08,3026.3,3026.2,5.22475354]
[1764191044416,1e-08,3026.3,3026.2,4.80555354]
[1764191045020,1e-08,3026.3,3026.2,5.22475354]
[1764191045518,1e-08,3026.3,3026.2,5.64395354]
[1764191047419,1e-08,3026.3,3026.2,5.22475354]
[1764191048423,1e-08,3026.3,3026.2,5.64395354]
[1764191051207,1e-08,3026.3,3026.2,4.80555354]
[1764191051407,1e-08,3026.3,3026.2,4.44926836]
[1764191051931,1e-08,3026.3,3026.2,4.03006836]
[1764191052705,1e-08,3026.3,3026.2,4.44926836]
[1764191052913,1e-08,3026.3,3026.2,4.03006836]
[1764191053432,0.49270001,3026.3,3026.2,4.03006836]
[1764191053614,1e-08,3026.3,3026.2,4.03006836]
[1764191053813,1e-08,3026.3,3026.2,5.18283354]
[1764191054119,1e-08,3026.3,3026.2,5.60203354]
[1764191054503,1e-08,3026.3,3026.2,5.81203354]
[1764191055737,1e-08,3026.3,3026.2,8.14745033]
[1764191056230,0.002,3027.1,3026.6,0.4192]
[1764191056527,0.1981,3026.9,3026.6,0.21]
[1764191057307,0.1981,3026.9,3026.7,4.02952248]
[1764191057815,0.9539,3026.8,3026.7,4.02952248]
[1764191059207,0.4805,3026.8,3026.7,4.02952248]
[1764191059634,0.9539,3026.8,3026.7,4.02952248]
[1764191061320,0.4805,3026.8,3026.7,4.02952248]
[1764191061640,0.002,3026.8,3026.7,5.18207772]
[1764191063012,0.002,3026.8,3026.7,4.76287772]
[1764191063707,0.002,3026.8,3026.7,5.18207772]
[1764191066612,0.002,3026.8,3026.7,11.14987512]
[1764191068212,0.4805,3026.8,3026.7,11.14987512]
[1764191068811,0.002,3026.8,3026.7,11.56907512]
[1764191069326,0.4805,3026.8,3026.7,4.89514257]
[1764191069529,0.002,3026.8,3026.7,4.89514257]
[1764191069728,0.002,3026.8,3026.7,5.31434257]
[1764191070115,0.002,3026.8,3026.7,4.89514257]
[1764191070318,0.4805,3026.8,3026.7,4.89514257]
[1764191070544,0.9539,3026.8,3026.7,4.89514257]
[1764191070724,0.9539,3026.8,3026.7,4.02952248]
[1764191071760,0.9539,3026.8,3026.7,3.30392837]
[1764191071940,1.26312508,3026.8,3026.7,3.30392837]
[1764191072243,1.26312508,3026.8,3026.7,4.02952248]
[1764191074344,0.78972508,3026.8,3026.7,4.02952248]
[1764191074547,0.9539,3026.8,3026.7,4.02952248]
[1764191076057,0.002,3026.8,3026.7,4.02952248]
[1764191076554,0.002,3027.1,3026.8,0.72559411]
[1764191076763,0.002,3027.1,3026.9,4.02930417]
[1764191076957,0.31127477,3027.0,3026.8,3.30378512]
[1764191077253,0.98387477,3026.9,3026.8,0.72559411]
[1764191077430,1.45727477,3026.9,3026.7,3.30391962]
[1764191077633,1.18687477,3026.8,3026.7,4.02951373]
[1764191080018,0.8776,3026.8,3026.7,4.02951373]
[1764191080232,1.18682651,3026.8,3026.7,4.02951373]
[1764191081529,1.39682651,3026.8,3026.7,4.02951373]
[1764191082456,1.39682651,3026.8,3026.7,3.30391962]
[1764191082661,1.39682651,3026.8,3026.6,0.001]
[1764191082956,2.37808851,3026.7,3026.3,0.001]
[1764191083216,0.4049,3026.4,3026.3,0.001]
[1764191083358,0.71412651,3026.4,3026.3,0.001]
[1764191083553,1.39752651,3026.4,3026.3,0.001]
[1764191084986,1.18752651,3026.4,3026.3,0.001]
[1764191086762,1.39752651,3026.4,3026.3,0.001]
[1764191089306,0.92412651,3026.4,3026.3,0.001]
[1764191089671,0.6149,3026.4,3026.3,0.001]
[1764191090583,0.21,3026.4,3026.3,0.001]
[1764191090800,0.21,3026.4,3026.3,0.4202]
[1764191091255,0.1981,3026.9,3026.3,14.36325435]
[1764191091460,0.30840968,3026.8,3026.4,1.76677246]
[1764191091778,0.4081,3026.9,3026.4,2.49236657]
[1764191091978,0.30839784,3026.8,3026.4,2.49236657]
[1764191092190,0.4941,3026.5,3026.4,0.72559411]
[1764191092596,0.9532,3026.5,3026.4,0.72559411]
[1764191092887,1.26164899,3026.5,3026.4,0.72559411]
[1764191093506,1.26164899,3026.5,3026.4,4.02984999]
[1764191098604,1.26164899,3026.5,3026.3,0.001]
[1764191098781,1.38054899,3026.4,3026.3,0.001]
[1764191099967,1.78605299,3026.4,3026.3,0.001]
[1764191105687,2.49792507,3026.4,3026.3,0.001]
[1764191105889,0.405504,3026.3,3026.1,0.001]
[1764191106081,1.20715299,3026.2,3026.1,0.001]
[1764191106419,1.91902507,3026.2,3026.1,0.001]
[1764191106620,2.37812507,3026.2,3026.1,0.001]
[1764191107492,5.68259932,3026.2,3026.1,0.001]
[1764191108012,2.51049716,3026.2,3026.1,0.001]
[1764191108176,5.81497141,3026.2,3026.1,0.001]
[1764191108596,0.405504,3026.1,3026.0,0.001]
[1764191108777,8.62462507,3026.1,3026.0,0.001]
[1764191109607,8.62462507,3026.1,3025.0,0.001]
[1764191109608,0.405504,3025.8,3025.0,0.001]
[1764191109776,8.70785916,3025.1,3025.0,0.001]
[1764191109979,0.864804,3024.7,3024.3,0.001]
[1764191110324,0.1851,3024.8,3024.3,0.001]
[1764191110325,0.866704,3024.4,3024.3,0.001]
[1764191110481,1.17515299,3024.4,3024.3,0.001]
[1764191110681,1.63005299,3024.4,3024.3,0.001]
[1764191110976,1.13109811,3024.3,3023.5,0.001]
[1764191111181,1.060404,3023.6,3023.5,0.001]
[1764191111377,1.57885299,3023.6,3023.5,0.001]
[1764191111577,2.03375299,3023.6,3023.5,0.001]
[1764191111980,1.43454899,3023.6,3023.5,0.001]
[1764191112382,0.76964899,3023.6,3023.5,0.001]
[1764191112582,0.21,3023.6,3023.5,0.001]
[1764191113509,1.531604,3023.6,3023.5,0.001]
[1764191114516,0.405504,3023.7,3023.5,0.001]
[1764191114685,0.21,3023.6,3023.5,0.001]
[1764191115179,0.6849,3023.6,3023.5,0.001]
[1764191115823,1.561704,3023.6,3023.5,0.001]
[1764191116317,0.615504,3023.6,3023.5,0.001]
[1764191116849,0.21,3023.6,3023.5,0.4242]
[1764191117017,0.4713,3024.2,3023.5,0.8474]
[1764191117189,0.21,3024.1,3023.5,0.8474]
[1764191117891,0.21,3024.1,3023.7,0.72559411]
[1764191118093,0.6813,3024.1,3023.7,0.72559411]
[1764191118494,0.4749,3023.8,3023.7,0.72559411]
[1764191118694,0.6704,3023.8,3023.7,0.72559411]
[1764191119286,1.1417,3023.8,3023.7,0.72559411]
[1764191119818,0.405504,3023.7,3023.5,0.001]
[1764191120117,1.090404,3023.6,3023.5,0.001]
[1764191120340,0.880404,3023.6,3023.5,0.001]
[1764191120633,1.561704,3023.6,3023.5,0.001]
[1764191122316,1.351704,3023.6,3023.5,0.001]
[1764191122519,1.561704,3023.6,3023.5,0.001]
[1764191123639,1.090404,3023.6,3023.5,0.001]
[1764191124933,1.561704,3023.6,3023.5,0.001]
[1764191126341,1.86806122,3023.6,3023.5,0.001]
[1764191133427,5.175377,3023.6,3023.5,0.001]
[1764191133653,1.86806122,3023.6,3023.5,0.001]
[1764191133949,1.65806122,3023.6,3023.5,0.001]
[1764191134165,1.18676122,3023.6,3023.5,0.001]
[1764191134519,1.39676122,3023.6,3023.5,0.001]
[1764191136226,1.398675,3023.6,3023.5,0.001]
[1764191137156,2.10971829,3023.6,3023.5,0.001]
[1764191137952,2.58101829,3023.6,3023.5,0.001]
[1764191138152,0.405504,3023.5,3023.1,6.61670653]
[1764191138338,0.4145,3023.2,3023.1,3.30884375]
[1764191138537,0.932771,3023.2,3023.1,3.30884375]
[1764191138745,0.932771,3023.2,3023.1,0.001]
[1764191138943,0.932771,3023.2,3023.1,0.4242]
[1764191138944,0.518271,3023.2,3023.1,0.4242]
[1764191139144,0.518271,3023.2,3023.1,0.5431]
[1764191139829,0.993171,3023.2,3023.1,0.001]
[1764191140343,1.70519384,3023.2,3023.1,0.001]
[1764191141128,2.58199784,3023.2,3023.1,0.001]
[1764191141862,2.58199784,3023.2,3022.8,0.001]
[1764191141863,0.405504,3023.1,3022.8,0.001]
[1764191142027,0.405504,3022.9,3022.8,0.001]
[1764191142231,0.308271,3022.9,3022.8,0.001]
[1764191142440,0.518271,3022.9,3022.8,0.8474]
[1764191142758,0.308271,3022.9,3022.8,0.8474]
[1764191142930,0.518271,3022.9,3022.8,0.8474]
[1764191143132,0.308271,3022.9,3022.8,4.88118519]
[1764191143337,0.518271,3022.9,3022.8,4.88118519]
[1764191146060,0.308271,3022.9,3022.8,5.47208096]
[1764191146237,0.518271,3022.9,3022.8,5.47208096]
[1764191148339,1.186571,3022.9,3022.8,0.001]
[1764191148539,1.668871,3022.9,3022.8,0.001]
[1764191148840,2.78809097,3022.9,3022.8,0.001]
[1764191149050,2.47981997,3022.9,3022.8,0.001]
[1764191149252,2.30744587,3022.9,3022.8,0.001]
[1764191149457,2.30744587,3022.9,3022.8,3.30919108]
[1764191149639,2.30744587,3022.9,3022.8,0.001]
[1764191150049,2.78974587,3022.9,3022.8,0.001]
[1764191150649,1.02364187,3022.9,3022.8,0.4242]
[1764191150965,0.3099259,3022.9,3022.8,0.4242]
[1764191151344,0.3099259,3022.9,3022.8,0.8474]
[1764191151536,0.3099259,3022.9,3022.8,4.88118519]
[1764191151738,0.3099259,3022.9,3022.8,5.70013333]
[1764191152867,0.3099259,3022.9,3022.8,4.03478519]
[1764191154872,0.5199259,3022.9,3022.8,4.88118519]
[1764191155870,0.3099259,3022.9,3022.8,4.88118519]
[1764191160572,0.3099259,3022.9,3022.8,4.45798519]
[1764191161273,0.3099259,3022.9,3022.8,4.88118519]
[1764191161676,0.3099259,3022.9,3022.8,5.70013333]
[1764191163565,0.3099259,3022.9,3022.8,4.88118519]
[1764191164152,0.21,3023.2,3022.8,11.49756735]
[1764191164354,0.30969919,3023.1,3022.9,0.4232]
[1764191164567,0.30969919,3023.0,3022.9,0.4232]
[1764191164973,0.30969919,3023.0,3022.9,0.8464]
[1764191165659,0.30964806,3023.0,3022.9,0.8464]
[1764191165853,0.30964806,3023.0,3022.9,1.99616724]
[1764191166650,0.30964806,3023.0,3022.9,5.30424888]
[1764191168071,0.30964806,3023.0,3022.9,4.88104888]
[1764191168462,0.30964806,3023.0,3022.9,3.30808164]
[1764191168667,0.30964806,3023.0,3022.9,3.73128164]
[1764191169482,0.76174806,3023.0,3022.9,3.30808164]
[1764191169757,0.76174806,3023.0,3022.9,4.03367575]
[1764191170363,0.76174806,3023.0,3022.9,4.03467575]
[1764191172400,1.21284806,3023.0,3022.9,4.03467575]
[1764191174216,0.76174806,3023.0,3022.9,4.03467575]
[1764191174909,1.22214806,3023.0,3022.9,4.03467575]
[1764191176195,0.76174806,3023.0,3022.9,4.03467575]
[1764191176692,0.75964806,3023.0,3022.9,4.03467575]
[1764191177199,0.30964806,3023.0,3022.9,5.61546243]
[1764191178288,0.002,3023.2,3023.0,0.72559411]
[1764191178605,0.30965472,3023.1,3023.0,0.72559411]
[1764191179273,0.30965472,3023.1,3023.0,1.14879411]
[1764191180090,0.30965472,3023.1,3023.0,4.45676632]
[1764191180290,1.22005472,3023.1,3023.0,4.03356632]
[1764191183572,0.30965472,3023.1,3023.0,4.45676632]
[1764191183802,0.51965472,3023.1,3023.0,5.23345112]
[1764191184874,0.51965472,3023.1,3023.0,4.81025112]
[1764191185690,0.51965472,3023.1,3023.0,4.03356632]
[1764191186000,0.30965472,3023.1,3023.0,13.20608303]
[1764191188925,0.30965472,3023.1,3023.0,13.20708303]
[1764191189112,0.002,3023.1,3023.0,13.20708303]
[1764191194683,0.002,3023.6,3023.0,23.13099966]
[1764191194884,0.002,3023.6,3023.5,9.59381082]
[1764191195286,0.002,3023.6,3023.5,10.01701082]
[1764191195731,0.002,3023.6,3023.5,13.32443598]
[1764191197140,0.002,3023.6,3023.5,12.90123598]
[1764191199511,0.002,3023.6,3023.5,13.32443598]
[1764191199713,0.002,3023.6,3023.5,14.98763241]
[1764191201136,0.9124,3023.6,3023.5,4.03301927]
[1764191201710,0.002,3023.6,3023.5,4.45621927]
[1764191202037,0.452,3023.6,3023.5,4.03301927]
[1764191202227,0.002,3023.6,3023.5,4.45621927]
[1764191202428,0.002,3023.6,3023.5,5.23259402]
[1764191202940,0.002,3023.6,3023.5,13.98191073]
[1764191205448,0.002,3023.6,3023.5,13.55871073]
[1764191206638,0.002,3023.6,3023.5,11.63169194]
[1764191208823,0.002,3023.6,3023.5,11.20849194]
[1764191209046,0.002,3023.6,3023.5,11.63169194]
[1764191210553,0.4983,3023.6,3023.5,10.43211719]
[1764191210929,0.002,3023.6,3023.5,10.85531719]
[1764191212326,0.002,3023.9,3023.6,0.72559411]
[1764191212656,0.002,3023.9,3023.8,17.25408698]
[1764191213352,0.002,3023.9,3023.8,17.67728698]
[1764191213549,0.002,3023.9,3023.8,19.77573557]
[1764191214251,0.002,3023.9,3023.8,19.35253557]
[1764191215751,0.4983,3023.9,3023.8,12.53023765]
[1764191215927,0.4983,3023.9,3023.8,10.43178906]
[1764191216127,0.4983,3023.9,3023.8,16.83088698]
[1764191216326,0.002,3023.9,3023.8,16.83088698]
[1764191217350,0.002,3023.9,3023.8,17.25408698]
[1764191218356,0.4983,3023.9,3023.8,10.43178906]
[1764191218555,0.4983,3023.9,3023.8,11.8366021]
[1764191219356,0.4983,3023.9,3023.8,18.23570002]
[1764191219556,0.002,3023.9,3023.8,18.23570002]
[1764191219760,0.002,3023.9,3023.8,11.8366021]
[1764191220052,0.9848,3023.9,3023.8,10.43178906]
[1764191220633,1.29427378,3023.9,3023.8,3.30709703]
[1764191220938,1.29427378,3023.9,3023.8,4.03269114]
[1764191221149,1.29427378,3023.9,3023.8,3.30709703]
[1764191221346,1.29427378,3023.9,3023.8,9.70619495]
[1764191222158,1.29427378,3023.9,3023.8,10.43178906]
[1764191222842,1.29436386,3023.9,3023.8,10.43178906]
[1764191225926,0.31156386,3023.9,3023.8,10.85498906]
[1764191226253,0.002,3024.0,3023.9,4.03258177]
[1764191226452,0.4983,3024.0,3023.9,4.03258177]
[1764191226831,0.9728,3024.0,3023.9,4.03258177]
[1764191229735,0.405504,3023.9,3023.5,0.001]
[1764191229934,0.871804,3023.6,3023.5,0.001]
[1764191230133,0.871804,3023.6,3023.5,6.40009792]
[1764191230366,1.556304,3023.6,3023.5,0.001]
[1764191233659,4.86361978,3023.6,3023.5,0.001]
[1764191233838,1.556304,3023.6,3023.5,0.001]
[1764191234859,1.346304,3023.6,3023.5,0.001]
[1764191235060,1.556304,3023.6,3023.5,0.001]
[1764191236052,1.556304,3023.6,3023.1,0.001]
[1764191236053,0.405504,3023.5,3023.1,0.001]
[1764191236253,0.820504,3023.2,3023.1,0.001]
[1764191236574,1.519104,3023.2,3023.1,0.001]
[1764191238147,1.82768377,3023.2,3023.1,0.001]
[1764191242365,5.13543714,3023.2,3023.1,0.001]
[1764191243180,1.82768377,3023.2,3023.1,0.001]
[1764191243889,1.61768377,3023.2,3023.1,0.001]
[1764191244091,1.82768377,3023.2,3023.1,0.001]
[1764191245080,5.13543714,3023.2,3023.1,0.001]
[1764191245600,1.82768377,3023.2,3023.1,0.001]
[1764191248181,1.61768377,3023.2,3023.1,0.001]
[1764191248490,1.82768377,3023.2,3023.1,0.001]
[1764191254396,1.82768377,3023.2,3023.1,0.001]
[1764191257290,2.54030641,3023.2,3023.1,0.001]
[1764191261493,2.05170641,3023.2,3023.1,0.001]
[1764191261897,0.30857977,3023.2,3023.1,0.5431]
[1764191262075,0.51857977,3023.2,3023.1,1.66154008]
[1764191262273,0.51857977,3023.2,3023.1,4.54620286]
[1764191263072,0.51857977,3023.2,3023.1,4.42730286]
[1764191263282,0.51857977,3023.2,3023.1,3.73206278]
[1764191263488,0.97047977,3023.2,3023.1,3.30886278]
[1764191263688,1.45907977,3023.2,3023.1,3.30886278]
[1764191264172,2.17313516,3023.2,3023.1,0.001]
[1764191264368,1.68453516,3023.2,3023.1,0.001]
[1764191264600,1.23263516,3023.2,3023.1,0.001]
[1764191264898,1.48507977,3023.2,3023.1,0.001]
[1764191265097,2.19913516,3023.2,3023.1,0.001]
[1764191266404,0.30857977,3023.2,3023.1,2.42634489]
[1764191266875,0.51857977,3023.2,3023.1,2.42634489]
[1764191267797,0.30857977,3023.2,3023.1,2.42634489]
[1764191267977,0.51857977,3023.2,3023.1,2.42634489]
[1764191268703,0.51857977,3023.2,3023.1,5.73420767]
[1764191272114,0.51857977,3023.2,3023.1,5.31100767]
[1764191272312,0.51857977,3023.2,3023.1,4.03445689]
[1764191272479,1.00327977,3023.2,3023.1,4.03445689]
[1764191273904,0.51857977,3023.2,3023.1,4.03445689]
[1764191274404,1.00327977,3023.2,3023.1,4.03445689]
[1764191276207,0.51857977,3023.2,3023.1,4.03445689]
[1764191276402,0.51857977,3023.2,3023.1,4.45765689]
[1764191277809,0.51857977,3023.2,3023.1,4.57655689]
[1764191279182,0.51857977,3023.2,3023.1,5.36520673]
[1764191279385,0.30857977,3023.2,3023.1,5.78840673]
[1764191281107,0.002,3023.5,3023.1,12.40413229]
[1764191281287,0.002,3023.5,3023.4,7.5560949]
[1764191281288,0.212,3023.5,3023.4,7.5560949]
[1764191281488,0.52132772,3023.5,3023.4,8.77722439]
[1764191282310,0.002,3023.5,3023.4,12.08475895]
[1764191283516,0.002,3024.0,3023.8,0.4232]
[1764191283693,0.002,3024.0,3023.9,7.9792949]
[1764191283902,0.4818,3025.6,3024.2,0.5381]
[1764191284211,0.1983,3025.8,3024.5,10.86242652]
[1764191284212,0.21,3025.3,3024.5,10.86242652]
[1764191284394,0.21,3025.4,3024.6,1.14879411]
[1764191284581,0.21,3025.4,3024.9,7.5560949]
[1764191284997,0.21,3025.4,3024.9,7.9792949]
[1764191285317,0.4867,3025.0,3024.9,0.72559411]
[1764191286410,0.9685,3025.0,3024.9,4.03148851]
[1764191286610,0.9685,3025.0,3024.9,0.72559411]
[1764191286790,0.9685,3025.0,3024.9,4.03148851]
[1764191291494,1.2761178,3025.0,3024.7,3.30608785]
[1764191291705,1.3190235,3024.9,3024.7,3.30608785]
[1764191291899,1.1386,3024.8,3024.7,3.30608785]
[1764191293419,1.1386,3024.8,3024.6,0.001]
[1764191293591,0.8826,3024.7,3024.6,0.001]
[1764191295402,0.21,3024.7,3024.6,0.4242]
[1764191296420,0.6713,3024.7,3024.6,0.001]
[1764191296724,0.21,3024.7,3024.6,0.001]
[1764191296920,0.21,3024.7,3024.6,0.4242]
[1764191297293,0.21,3024.7,3024.6,1.20043511]
[1764191297914,0.002,3025.0,3024.6,1.20043511]
[1764191298199,0.21,3024.9,3024.6,0.4242]
[1764191299330,0.21,3024.9,3024.8,0.72559411]
[1764191299700,0.6713,3024.9,3024.8,0.72559411]
[1764191300197,0.002,3025.0,3024.8,1.14879411]
[1764191300529,0.002,3025.0,3024.9,7.5560949]
[1764191300722,0.212,3025.0,3024.9,0.72559411]
[1764191301496,0.212,3025.0,3024.9,4.03148851]
[1764191301695,0.212,3025.0,3024.9,4.45468851]
[1764191302726,0.6733,3025.0,3024.9,4.03148851]
[1764191302927,1.1692,3025.0,3024.9,4.03148851]
[1764191304896,1.1692,3025.0,3024.6,3.30718674]
[1764191304897,0.405504,3024.9,3024.6,0.001]
[1764191305113,0.6496,3024.7,3024.6,0.001]
[1764191305323,0.95763394,3024.7,3024.6,0.001]
[1764191305522,1.45353394,3024.7,3024.6,0.001]
[1764191306498,0.95763394,3024.7,3024.6,0.001]
[1764191306803,1.45353394,3024.7,3024.6,0.001]
[1764191307913,1.85903794,3024.7,3024.6,0.001]
[1764191309229,2.57072472,3024.7,3024.6,0.001]
[1764191309434,5.87683772,3024.7,3024.6,0.001]
[1764191310719,5.87683772,3024.7,3024.5,0.001]
[1764191310720,8.77744672,3024.7,3024.5,0.001]
[1764191310918,3.40894287,3024.6,3024.3,0.001]
[1764191311231,0.866104,3024.4,3024.3,0.001]
[1764191311432,1.88582472,3024.4,3024.3,0.001]
[1764191311735,2.38172472,3024.4,3024.3,0.001]
[1764191312109,2.59172472,3024.4,3024.3,0.001]
[1764191313034,2.38172472,3024.4,3024.3,0.001]
[1764191313241,2.59172472,3024.4,3024.3,0.001]
[1764191314511,5.89816566,3024.4,3024.3,0.001]
[1764191322538,13.19501998,3024.4,3024.3,0.001]
[1764191323437,12.30310183,3024.4,3024.3,0.001]
[1764191323822,12.09310183,3024.4,3024.3,0.001]
[1764191324022,12.30310183,3024.4,3024.3,0.001]
[1764191324323,1.88582472,3024.4,3024.3,0.001]
[1764191324524,5.85816566,3024.4,3024.3,0.001]
[1764191325431,5.85863687,3024.4,3024.3,0.001]
[1764191327259,12.19863687,3024.4,3024.3,0.001]
[1764191328142,0.405504,3024.3,3024.2,0.001]
[1764191328342,15.0528321,3024.3,3024.2,0.001]
[1764191328530,15.94475025,3024.3,3024.2,0.001]
[1764191329351,19.46130052,3024.3,3024.2,0.001]
[1764191329558,19.25130052,3024.3,3024.2,0.001]
[1764191329752,19.46130052,3024.3,3024.2,0.001]
[1764191331032,22.76785079,3024.3,3023.9,0.001]
[1764191331238,10.57390912,3024.1,3023.9,0.001]
[1764191331459,11.59410105,3024.1,3023.9,0.001]
[1764191331657,12.05000105,3024.1,3023.9,0.001]
[1764191331855,11.7414959,3024.1,3023.9,0.001]
[1764191332062,12.05020335,3024.1,3023.9,0.001]
[1764191333231,12.41844743,3024.1,3023.9,0.001]
[1764191333560,11.52936718,3024.1,3023.9,0.001]
[1764191333759,8.22259823,3024.1,3023.9,0.001]
[1764191333964,7.57039423,3024.1,3024.0,0.4242]
[1764191334261,7.97589823,3024.1,3024.0,0.4242]
[1764191334460,7.97589823,3024.1,3024.0,0.001]
[1764191335445,7.97589823,3024.1,3024.0,0.4242]
[1764191338267,7.57039423,3024.1,3024.0,0.4242]
[1764191338468,0.30870745,3024.1,3024.0,4.1542783]
[1764191338767,0.30870745,3024.1,3024.0,12.67152803]
[1764191338969,0.51870745,3024.1,3024.0,12.67152803]
[1764191340455,0.51870745,3024.1,3024.0,6.26659186]
[1764191341050,0.51870745,3024.1,3024.0,4.87987241]
[1764191341564,0.51870745,3024.1,3024.0,1.14979411]
[1764191341869,0.51870745,3024.1,3024.0,4.87987241]
[1764191343567,5.1435804,3024.1,3024.0,0.001]
[1764191343763,5.85650763,3024.1,3024.0,0.001]
[1764191344252,12.19650763,3024.1,3024.0,0.001]
[1764191344452,1.296204,3024.0,3023.6,0.001]
[1764191344772,1.93695759,3023.7,3023.6,0.001]
[1764191344976,2.45566504,3023.7,3023.6,0.001]
[1764191345273,3.62449227,3023.7,3023.6,0.001]
[1764191345680,6.93169867,3023.7,3023.6,0.001]
[1764191346754,6.04034508,3023.7,3023.6,0.001]
[1764191347456,7.22800309,3023.7,3023.6,0.001]
[1764191347656,6.04034508,3023.7,3023.6,0.001]
[1764191348046,6.76593919,3023.7,3023.6,0.001]
[1764191348256,6.76593919,3023.7,3023.3,0.001]
[1764191348257,1.13109811,3023.6,3023.3,0.001]
[1764191348450,1.13109811,3023.6,3021.5,3.3095447]
[1764191348451,0.405504,3022.7,3021.0,0.1149]
[1764191348674,12.91803311,3022.7,3021.3,1.15079411]
[1764191348985,5.18929844,3022.7,3021.6,0.4252]
[1764191349189,3.40847287,3022.7,3021.6,0.4252]
[1764191349358,4.59412174,3022.7,3021.6,0.4252]
[1764191349751,4.59412174,3022.7,3022.1,0.1914]
[1764191349752,6.88039544,3022.7,3022.1,0.1914]
[1764191350158,6.67039544,3022.7,3021.6,3.30947919]
[1764191350360,5.99117928,3022.7,3021.5,0.4252]
[1764191350559,5.99117928,3022.7,3021.6,3.30949884]
[1764191351259,5.99117928,3022.7,3021.5,0.4252]
[1764191351769,5.99117928,3022.7,3021.6,3.30949834]
[1764191352852,2.47287876,3022.7,3021.6,3.30949834]
[1764191353081,5.8586392,3022.7,3021.8,0.4252]
[1764191353285,5.6486392,3022.7,3021.8,0.4252]
[1764191353476,5.8586392,3022.7,3022.1,0.1914]
[1764191354472,5.8586392,3022.7,3021.7,0.0957]
[1764191355356,5.8586392,3022.7,3021.7,3.40508707]
[1764191355784,5.8586392,3022.7,3021.7,0.0957]
[1764191357881,5.85747258,3022.7,3021.7,0.0957]
[1764191360980,5.85747258,3022.7,3021.6,3.30945118]
[1764191361186,5.85747258,3022.7,3021.5,1.15079411]
[1764191361886,5.85747258,3022.7,3021.7,0.4252]
[1764191362579,12.26928466,3022.7,3021.7,0.4252]
[1764191363085,12.26928466,3022.7,3022.2,0.001]
[1764191364355,12.40182693,3022.7,3022.2,0.001]
[1764191364667,5.78001485,3022.7,3022.2,0.001]
[1764191364869,5.99001485,3022.7,3022.2,0.001]
[1764191368295,6.71560896,3022.7,3022.2,0.001]
[1764191368596,0.405504,3022.5,3022.2,0.001]
[1764191368795,11.47501646,3022.3,3022.2,0.001]
[1764191368969,12.70548452,3022.3,3022.2,0.001]
[1764191369164,12.12731657,3022.3,3022.2,0.001]
[1764191369775,15.43605494,3022.3,3022.2,0.001]
[1764191370378,16.6165599,3022.3,3022.2,0.001]
[1764191370688,15.43605494,3022.3,3022.2,0.001]
[1764191370895,6.03668415,3022.3,3022.2,0.001]
[1764191371068,4.46178604,3022.3,3022.2,0.4262]
[1764191371267,0.30754083,3022.3,3022.2,0.001]
[1764191371479,1.22606651,3022.3,3022.2,0.4262]
[1764191371673,4.53480488,3022.3,3022.2,0.4262]
[1764191371884,4.2317832,3022.3,3022.2,0.4262]
[1764191372396,0.51754083,3022.3,3022.2,0.8514]
[1764191373294,0.51754083,3022.3,3022.2,0.4262]
[1764191376994,1.22918791,3022.3,3022.2,0.4262]
[1764191377202,0.51754083,3022.3,3022.2,0.4262]
[1764191378879,0.51952308,3022.3,3022.2,0.4262]
[1764191379483,1.23117016,3022.3,3022.2,0.4262]
[1764191379882,0.51952308,3022.3,3022.2,0.4262]
[1764191380083,1.23117016,3022.3,3022.2,0.4262]
[1764191380279,0.51952308,3022.3,3022.2,0.4262]
[1764191381808,0.30952308,3022.3,3022.2,0.4262]
[1764191381988,0.51952308,3022.3,3022.2,4.58594889]
[1764191382978,0.30952308,3022.3,3022.2,4.58594889]
[1764191383307,0.51952308,3022.3,3022.2,5.311543]
[1764191390527,0.30952308,3022.3,3022.2,5.311543]
[1764191391038,0.51952308,3022.3,3022.2,5.311543]
[1764191392540,0.30952308,3022.3,3022.2,5.311543]
[1764191392711,0.51952308,3022.3,3022.2,5.311543]
[1764191394003,0.30952308,3022.3,3022.2,5.311543]
[1764191394208,0.51952308,3022.3,3022.2,5.311543]
[1764191394848,0.51907629,3022.3,3022.2,5.311543]
[1764191395512,0.30907629,3022.3,3022.2,5.311543]
[1764191395710,0.002,3022.5,3022.3,0.72559411]
[1764191396010,0.002,3022.5,3022.4,1.71243908]
[1764191397225,0.002,3022.5,3022.4,5.74666209]
[1764191397426,0.002,3022.9,3022.5,0.72559411]
[1764191397628,0.002,3022.9,3022.8,0.4252]
[1764191398137,0.002,3022.9,3022.8,0.8504]
[1764191399334,0.002,3022.9,3022.8,4.88418519]
[1764191399538,0.002,3022.9,3022.8,5.70343316]
[1764191403866,0.002,3022.9,3022.8,5.27823316]
[1764191404016,0.002,3022.9,3022.8,4.45898519]
[1764191404523,0.310723,3022.9,3022.8,4.45898519]
[1764191405642,1.292423,3022.9,3022.8,0.72559411]
[1764191405842,1.478723,3022.9,3022.8,0.72559411]
[1764191406513,1.478723,3022.9,3022.3,6.61747674]
[1764191406718,1.174923,3022.8,3022.3,6.61747674]
[1764191406918,0.308723,3022.7,3022.4,0.72559411]
[1764191407246,0.308723,3022.6,3022.4,0.72559411]
[1764191407543,0.518723,3022.5,3022.4,4.03422301]
[1764191408236,0.518723,3022.5,3022.4,0.72559411]
[1764191408237,1.004123,3022.5,3022.4,0.72559411]
[1764191409454,0.518723,3022.5,3022.4,0.4252]
[1764191409618,1.004123,3022.5,3022.3,4.03430038]
[1764191409817,0.308723,3022.4,3022.3,4.03430038]
[1764191410034,0.308723,3022.4,3022.2,3.30979162]
[1764191410244,0.308723,3022.3,3022.2,4.03538573]
[1764191410632,0.308723,3022.3,3022.2,4.46058573]
[1764191411837,0.794123,3022.3,3022.2,0.72659411]
[1764191412030,0.794123,3022.3,3022.2,4.03544196]
[1764191412235,0.794123,3022.3,3022.2,0.72659411]